bitfinex/quotes_SOLUSD_20250522
["timestamp","ask_amount","ask_price","bid_price","bid_amount"]
[1747894781758,5.69451568,175.61,175.6,40.41123029]
[1747894781959,34.16,175.61,175.6,40.41123029]
[1747894783139,39.85443653,175.61,175.6,40.41123029]
[1747894785148,6.5027,175.65,175.62,26.0]
[1747894785471,34.16,175.64,175.62,40.41123029]
[1747894785760,34.16,175.63,175.62,40.41123029]
[1747894787165,34.16,175.63,175.59,26.0]
[1747894787459,34.16,175.63,175.62,14.41123029]
[1747894788769,39.85378807,175.63,175.6,26.0]
[1747894788967,39.85378807,175.63,175.6,40.41123029]
[1747894789349,54.08825826,175.63,175.6,40.41123029]
[1747894789559,54.08825826,175.63,175.6,26.0]
[1747894789872,54.08825826,175.63,175.6,40.41123029]
[1747894790275,54.08825826,175.63,175.61,14.41123029]
[1747894790772,39.85378807,175.63,175.61,14.41123029]
[1747894793449,39.85378807,175.63,175.6,26.0]
[1747894793649,39.85378807,175.63,175.6,40.41123029]
[1747894794087,39.85378807,175.63,175.6,26.0]
[1747894794268,39.85378807,175.63,175.61,14.41123029]
[1747894794945,39.85378807,175.63,175.6,26.0]
[1747894795177,39.85378807,175.63,175.61,14.41123029]
[1747894795959,39.85378807,175.63,175.62,40.41123029]
[1747894797273,5.69378807,175.63,175.62,40.41123029]
[1747894797473,39.85378807,175.63,175.62,40.41123029]
[1747894797675,34.16,175.63,175.62,40.41123029]
[1747894798771,34.16,175.63,175.62,14.41123029]
[1747894798772,39.85378807,175.63,175.62,14.41123029]
[1747894799086,34.16,175.63,175.62,14.41123029]
[1747894799486,5.69356161,175.64,175.62,14.41123029]
[1747894799665,34.16,175.63,175.6,26.0]
[1747894799863,34.16,175.63,175.62,14.41123029]
[1747894800059,34.16,175.63,175.59,26.0]
[1747894800278,34.16,175.63,175.6,14.41123029]
[1747894800585,34.16,175.63,175.61,14.41123029]
[1747894800779,34.16,175.63,175.59,40.41123029]
[1747894801155,34.16,175.63,175.6,14.41123029]
[1747894801358,34.16,175.63,175.59,26.0]
[1747894801359,5.69411228,175.62,175.61,14.41123029]
[1747894801572,39.85385918,175.63,175.61,14.41123029]
[1747894801790,39.85385918,175.63,175.62,14.41123029]
[1747894801973,34.16,175.63,175.62,40.41123029]
[1747894802287,39.85378807,175.63,175.62,40.41123029]
[1747894802482,34.16,175.63,175.62,40.41123029]
[1747894802983,34.16,175.63,175.62,26.0]
[1747894803284,39.85378807,175.63,175.62,40.41123029]
[1747894803885,34.16,175.63,175.62,40.41123029]
[1747894807289,39.85378807,175.63,175.62,40.41123029]
[1747894808191,34.16,175.63,175.62,40.41123029]
[1747894808974,39.85378807,175.63,175.62,40.41123029]
[1747894809167,39.85378807,175.63,175.53,136.89786157]
[1747894809368,39.85378807,175.63,175.57,14.41123029]
[1747894809585,68.49948855,175.63,175.57,40.41123029]
[1747894809890,7.99006157,175.62,175.53,40.62]
[1747894810064,14.41123029,175.56,175.49,1.6148]
[1747894810273,34.16,175.55,175.5,14.41123029]
[1747894810582,34.16,175.54,175.51,26.0]
[1747894810783,34.16,175.53,175.51,40.41123029]
[1747894810985,19.94074748,175.52,175.51,26.0]
[1747894811189,19.94074748,175.52,175.49,14.41123029]
[1747894811385,34.16,175.51,175.49,14.41123029]
[1747894811600,34.16,175.51,175.48,14.41123029]
[1747894811903,14.41123029,175.49,175.4,1.6379]
[1747894812100,48.57123029,175.48,175.42,14.41123029]
[1747894812278,48.57123029,175.48,175.41,14.41123029]
[1747894812279,14.41123029,175.47,175.41,14.41123029]
[1747894812481,14.41123029,175.47,175.38,40.62]
[1747894812482,14.41123029,175.46,175.4,14.41123029]
[1747894812790,34.16,175.45,175.44,26.0]
[1747894813000,39.85962952,175.45,175.44,40.41123029]
[1747894813501,39.85962952,175.45,175.43,14.41123029]
[1747894813795,39.85962952,175.45,175.43,48.70836109]
[1747894814000,39.85962952,175.45,175.43,26.0]
[1747894814588,39.85962952,175.45,175.44,22.70836109]
[1747894814979,39.85962952,175.45,175.43,48.70836109]
[1747894815389,34.16,175.45,175.44,22.70836109]
[1747894815591,5.69768104,175.51,175.44,22.70836109]
[1747894815905,34.18,175.5,175.49,22.70836109]
[1747894816711,34.18,175.5,175.49,48.70836109]
[1747894816913,34.18,175.5,175.49,26.0]
[1747894817113,39.87800569,175.5,175.49,48.70836109]
[1747894817484,39.87800569,175.5,175.49,26.0]
[1747894818178,76.83138102,175.5,175.41,1.6279]
[1747894818402,22.70836109,175.49,175.44,26.0]
[1747894818602,22.70836109,175.49,175.44,22.70836109]
[1747894818901,76.83138102,175.5,175.45,22.70836109]
[1747894819089,54.12301993,175.5,175.45,22.70836109]
[1747894819704,39.87800569,175.5,175.46,26.0]
[1747894820012,39.87800569,175.5,175.46,22.70836109]
[1747894820209,39.87800569,175.5,175.47,48.70836109]
[1747894820379,34.18,175.49,175.47,48.70836109]
[1747894820780,34.18,175.49,175.47,26.0]
[1747894821299,5.69865511,175.48,175.47,26.0]
[1747894823999,39.8783596,175.49,175.47,48.70836109]
[1747894826207,39.8783596,175.49,175.47,26.0]
[1747894826899,39.8783596,175.49,175.47,48.70836109]
[1747894827206,39.8783596,175.49,175.47,26.0]
[1747894827387,54.12418557,175.49,175.45,22.70836109]
[1747894828981,54.12418557,175.49,175.46,22.70836109]
[1747894833617,54.12418557,175.49,175.41,1.6279]
[1747894833791,54.12418557,175.49,175.45,14.40913511]
[1747894834294,54.12418557,175.49,175.41,27.6279]
[1747894835607,19.94642958,175.47,175.43,14.40913511]
[1747894835809,34.18,175.46,175.43,14.40913511]
[1747894836199,34.18,175.46,175.44,14.40913511]
[1747894837206,34.18,175.46,175.38,40.62]
[1747894837427,34.18,175.46,175.45,14.40913511]
[1747894838099,34.18,175.46,175.43,26.0]
[1747894838306,34.18,175.46,175.45,14.40913511]
[1747894838810,34.18,175.46,175.42,26.0]
[1747894839017,34.18,175.46,175.45,14.40913511]
[1747894839695,34.18,175.46,175.45,40.40913511]
[1747894840112,19.94074748,175.52,175.45,40.40913511]
[1747894840312,34.18,175.51,175.48,14.40913511]
[1747894840994,34.18,175.51,175.49,14.40913511]
[1747894841197,20.70590488,175.55,175.5,14.40913511]
[1747894841396,39.8967073,175.54,175.52,14.40913511]
[1747894842919,54.13847555,175.54,175.51,14.40913511]
[1747894843099,54.13847555,175.54,175.5,14.40913511]
[1747894843298,54.13847555,175.54,175.51,14.40913511]
[1747894844810,54.13847555,175.54,175.5,14.40913511]
[1747894845412,0.14216157,175.53,175.49,14.40913511]
[1747894845594,0.14216157,175.53,175.44,65.1]
[1747894845791,0.14216157,175.53,175.49,14.40913511]
[1747894846902,54.13847555,175.54,175.5,14.40913511]
[1747894848503,54.13847555,175.54,175.44,26.0]
[1747894848811,54.13847555,175.54,175.5,14.40913511]
[1747894850516,39.8967073,175.54,175.52,14.40913511]
[1747894851221,39.8967073,175.54,175.51,14.40913511]
[1747894851593,39.8967073,175.54,175.45,5.69962952]
[1747894851799,54.13847555,175.54,175.51,14.40913511]
[1747894852627,54.13847555,175.54,175.44,65.1]
[1747894852914,54.13847555,175.54,175.49,14.40913511]
[1747894853325,0.14216157,175.53,175.49,14.40913511]
[1747894853835,0.14216157,175.53,175.5,14.40913511]
[1747894854536,5.6967073,175.54,175.52,14.40913511]
[1747894854694,5.69605832,175.56,175.53,14.40913511]
[1747894854900,5.69605832,175.56,175.55,14.40913511]
[1747894855201,39.87605832,175.56,175.55,14.40913511]
[1747894856208,39.87605832,175.56,175.5,1.5096]
[1747894856416,5.69586026,175.57,175.55,14.40913511]
[1747894856652,34.18,175.56,175.5,7.20732352]
[1747894857325,39.87614427,175.56,175.5,7.20732352]
[1747894857728,39.87614427,175.56,175.55,14.40913511]
[1747894859132,34.18,175.56,175.55,14.40913511]
[1747894860416,20.82669993,175.6,175.55,14.40913511]
[1747894860736,39.87508514,175.59,175.58,14.40913511]
[1747894861344,5.69411228,175.62,175.58,14.40913511]
[1747894861513,34.18,175.59,175.54,5.69653367]
[1747894861710,5.69411228,175.62,175.58,14.40913511]
[1747894861910,34.18,175.61,175.6,14.40913511]
[1747894862719,39.87443653,175.61,175.6,14.40913511]
[1747894863334,39.87443653,175.61,175.59,14.40913511]
[1747894864630,19.92860601,175.63,175.6,14.40913511]
[1747894864813,34.18,175.62,175.6,14.40913511]
[1747894865215,34.18,175.61,175.6,14.40913511]
[1747894865716,54.11052786,175.61,175.58,14.40913511]
[1747894866035,54.11052786,175.61,175.52,39.1]
[1747894866036,54.11052786,175.61,175.57,14.40913511]
[1747894866332,0.14216157,175.6,175.55,14.40913511]
[1747894867950,19.93279799,175.59,175.55,14.40913511]
[1747894868560,19.93279799,175.59,175.56,14.40913511]
[1747894869411,19.93279799,175.59,175.5,40.6096]
[1747894869640,19.93279799,175.59,175.55,14.40913511]
[1747894871516,5.69508514,175.59,175.55,14.40913511]
[1747894871714,5.69476708,175.6,175.58,14.40913511]
[1747894871963,39.87476708,175.6,175.59,14.40913511]
[1747894872114,5.69378807,175.63,175.59,14.40913511]
[1747894872443,5.69378807,175.63,175.62,14.40913511]
[1747894872628,39.87378807,175.63,175.62,14.40913511]
[1747894873164,54.10825826,175.63,175.54,44.64964886]
[1747894873454,0.14216157,175.62,175.57,14.40913511]
[1747894873625,14.55129668,175.62,175.56,14.40913511]
[1747894873828,0.14216157,175.6,175.55,14.40913511]
[1747894874667,34.3419331,175.59,175.5,1.5096]
[1747894874955,48.58913511,175.58,175.52,14.40913511]
[1747894875253,14.40913511,175.56,175.51,14.40913511]
[1747894875661,22.69493031,175.55,175.5,22.69493031]
[1747894875953,18.79181043,175.57,175.45,1.5839]
[1747894875954,22.83709188,175.54,175.48,22.69493031]
[1747894876163,34.18,175.53,175.49,22.69493031]
[1747894876537,5.69735642,175.52,175.49,22.69493031]
[1747894876751,5.69735642,175.52,175.5,22.69493031]
[1747894877825,5.69735642,175.52,175.51,22.69493031]
[1747894881659,5.63355418,175.52,175.51,22.69493031]
[1747894882443,5.63355418,175.52,175.46,39.1]
[1747894882627,5.63355418,175.52,175.51,22.69493031]
[1747894883346,5.63355418,175.52,175.5,22.69493031]
[1747894883528,0.14216157,175.51,175.46,22.69493031]
[1747894883724,0.14216157,175.51,175.47,22.69493031]
[1747894884342,0.14216157,175.51,175.4,56.99590424]
[1747894884552,22.83709188,175.51,175.4,1.6281]
[1747894884752,0.14216157,175.49,175.4,1.6281]
[1747894884953,34.18,175.48,175.43,22.69493031]
[1747894885136,0.14216157,175.47,175.43,22.69493031]
[1747894885654,0.14216157,175.47,175.44,22.69493031]
[1747894885655,5.69930468,175.46,175.44,22.69493031]
[1747894886038,19.94756639,175.46,175.42,22.69493031]
[1747894886239,19.94756639,175.46,175.36,42.2405]
[1747894886550,0.14216157,175.45,175.41,22.69493031]
[1747894886747,41.48674074,175.45,175.36,1.6005]
[1747894887047,43.06034074,175.45,175.39,22.69493031]
[1747894887248,0.14216157,175.41,175.32,1.6005]
[1747894887452,5.70157933,175.39,175.38,22.69493031]
[1747894887953,34.18,175.4,175.38,22.69493031]
[1747894888156,34.18,175.4,175.39,22.69493031]
[1747894890163,5.70094396,175.41,175.39,22.69493031]
[1747894890364,34.18,175.4,175.39,22.69493031]
[1747894894356,34.2,175.4,175.39,22.69493031]
[1747894896677,34.2,175.4,175.34,5.70315511]
[1747894896845,34.2,175.4,175.39,22.69493031]
[1747894897747,34.2,175.4,175.39,14.4195054]
[1747894899873,34.2,175.4,175.34,20.1226491]
[1747894900049,34.2,175.4,175.39,14.4195054]
[1747894902145,34.2,175.4,175.34,39.1]
[1747894902350,39.90130035,175.4,175.37,14.4195054]
[1747894902580,39.90130035,175.4,175.34,39.1]
[1747894902785,39.90130035,175.4,175.32,1.6005]
[1747894902786,39.90130035,175.4,175.37,14.4195054]
[1747894903072,6.1694,175.39,175.29,39.1]
[1747894903255,26.14216157,175.38,175.33,14.4195054]
[1747894903457,40.56166697,175.38,175.32,14.4195054]
[1747894903776,40.56166697,175.38,175.24,1.6229]
[1747894903777,26.0,175.33,175.24,1.6229]
[1747894903990,34.2,175.32,175.24,1.6229]
[1747894904157,5.70418116,175.31,175.24,1.6229]
[1747894904356,5.70418116,175.31,175.28,14.4195054]
[1747894904973,11.96798116,175.31,175.2,5.70770258]
[1747894905163,11.96798116,175.31,175.19,20.28284886]
[1747894905367,11.96798116,175.31,175.26,14.4195054]
[1747894905368,26.22843407,175.31,175.26,14.4195054]
[1747894905550,0.14216157,175.3,175.26,14.4195054]
[1747894906178,11.96798116,175.31,175.28,14.4195054]
[1747894906380,11.96798116,175.31,175.29,14.4195054]
[1747894906750,34.2,175.32,175.3,14.4195054]
[1747894906891,34.2,175.32,175.31,14.4195054]
[1747894907477,34.2,175.32,175.23,33.06915426]
[1747894907788,34.2,175.32,175.31,14.4195054]
[1747894908301,39.9038558,175.32,175.31,14.4195054]
[1747894909008,39.9038558,175.32,175.23,33.06915426]
[1747894909292,39.9038558,175.32,175.3,14.4195054]
[1747894909677,39.9038558,175.32,175.3,22.74559617]
[1747894910197,39.9038558,175.32,175.24,22.74559617]
[1747894910509,39.9038558,175.32,175.3,22.74559617]
[1747894910689,39.9038558,175.32,175.31,22.74559617]
[1747894912207,34.2,175.32,175.26,5.70578547]
[1747894912409,34.2,175.32,175.31,22.74559617]
[1747894913001,39.903862,175.32,175.27,1.6002]
[1747894913297,39.903862,175.32,175.31,22.74559617]
[1747894913497,34.2,175.32,175.31,22.74559617]
[1747894914083,39.9038558,175.32,175.27,1.6002]
[1747894914309,39.9038558,175.32,175.31,22.74559617]
[1747894915604,34.2,175.32,175.31,22.74559617]
[1747894916385,39.9038558,175.32,175.25,24.35578295]
[1747894916715,39.9038558,175.32,175.31,22.74559617]
[1747894916895,39.9038558,175.32,175.25,63.45578295]
[1747894917089,39.9038558,175.32,175.31,22.74559617]
[1747894921288,34.2,175.32,175.31,22.74559617]
[1747894922117,34.22,175.33,175.31,22.74559617]
[1747894922334,34.22,175.33,175.32,22.74559617]
[1747894922686,39.92368719,175.33,175.24,134.19200025]
[1747894922989,39.92368719,175.33,175.32,22.74559617]
[1747894924413,34.22,175.33,175.32,22.74559617]
[1747894924789,39.92353048,175.33,175.32,22.74559617]
[1747894925086,27.609,175.38,175.25,6.049]
[1747894925291,34.22,175.37,175.34,22.74559617]
[1747894925819,39.92222957,175.37,175.34,22.74559617]
[1747894927010,10.33155335,175.36,175.31,5.7041171]
[1747894927208,10.33155335,175.36,175.35,22.74559617]
[1747894928498,10.33155335,175.36,175.35,28.44847612]
[1747894928696,5.6999544,175.44,175.36,1.586]
[1747894928905,39.9199544,175.44,175.36,1.586]
[1747894929108,39.9199544,175.44,175.42,22.74559617]
[1747894929324,39.9199544,175.44,175.43,22.74559617]
[1747894929923,39.9199544,175.44,175.37,22.74559617]
[1747894930824,39.9199544,175.44,175.37,28.44779507]
[1747894931806,39.9199544,175.44,175.36,1.586]
[1747894931807,5.69962952,175.45,175.43,14.41202129]
[1747894932015,5.69962952,175.45,175.44,14.41202129]
[1747894932896,7.59897774,175.46,175.44,14.41202129]
[1747894933126,7.59897774,175.46,175.45,14.41202129]
[1747894933821,13.29830661,175.46,175.45,14.41202129]
[1747894934123,13.29830661,175.46,175.44,14.41202129]
[1747894934913,13.29830661,175.46,175.45,14.41202129]
[1747894935823,7.59897774,175.46,175.45,14.41202129]
[1747894936328,13.29828242,175.46,175.45,14.41202129]
[1747894936514,13.29828242,175.46,175.44,14.41202129]
[1747894936907,47.49828242,175.46,175.44,14.41202129]
[1747894937730,47.49828242,175.46,175.43,14.41202129]
[1747894938312,47.49828242,175.46,175.39,1.5385]
[1747894938513,14.41202129,175.45,175.39,14.41202129]
[1747894938739,47.49828242,175.46,175.39,14.41202129]
[1747894939034,47.49828242,175.46,175.35,42.2204]
[1747894939035,61.91030371,175.46,175.4,14.41202129]
[1747894939813,76.15856542,175.46,175.4,14.41202129]
[1747894940009,61.74654413,175.46,175.36,5.70254569]
[1747894940236,61.74654413,175.46,175.44,14.41202129]
[1747894940422,61.74654413,175.46,175.43,14.41202129]
[1747894940834,47.49828242,175.46,175.44,14.41202129]
[1747894942547,47.49828242,175.46,175.45,14.41202129]
[1747894942748,41.79897774,175.46,175.45,14.41202129]
[1747894942924,47.49828242,175.46,175.45,14.41202129]
[1747894943322,41.79897774,175.46,175.45,14.41202129]
[1747894944043,47.49828242,175.46,175.4,5.70119951]
[1747894944346,47.49828242,175.46,175.45,14.41202129]
[1747894945053,47.49828242,175.46,175.39,39.1]
[1747894945252,47.49828242,175.46,175.45,14.41202129]
[1747894945547,41.79897774,175.46,175.45,14.41202129]
[1747894945720,7.59897774,175.46,175.45,14.41202129]
[1747894948731,6.4946,175.45,175.39,14.41202129]
[1747894948937,48.61202129,175.44,175.35,1.6417]
[1747894949148,48.61202129,175.44,175.39,14.41202129]
[1747894949844,5.70027931,175.43,175.39,14.41202129]
[1747894951331,26.0,175.41,175.35,1.6417]
[1747894951528,40.41202129,175.41,175.35,14.41202129]
[1747894951728,40.41202129,175.41,175.31,40.58]
[1747894951926,40.41202129,175.41,175.35,14.41202129]
[1747894952135,40.41202129,175.41,175.36,14.41202129]
[1747894952334,26.0,175.4,175.37,14.41202129]
[1747894952548,34.2,175.39,175.32,26.0]
[1747894952724,34.2,175.41,175.38,14.41202129]
[1747894952918,34.2,175.41,175.34,40.41202129]
[1747894952919,34.2,175.41,175.4,14.41202129]
[1747894953125,34.2,175.43,175.4,14.41202129]
[1747894953334,34.2,175.43,175.42,14.41202129]
[1747894955161,7.59897774,175.46,175.42,14.41202129]
[1747894955345,7.59897774,175.46,175.45,14.41202129]
[1747894955656,7.59897774,175.46,175.45,22.697422]
[1747894957560,13.29828242,175.46,175.45,22.697422]
[1747894957761,7.59897774,175.46,175.45,22.697422]
[1747894965176,13.29828242,175.46,175.45,22.697422]
[1747894966446,7.59897774,175.46,175.45,22.697422]
[1747894974861,26.0,175.52,175.45,22.697422]
[1747894974862,48.1849,175.56,175.45,67.49705152]
[1747894975069,34.18,175.52,175.45,44.79962952]
[1747894975255,5.69638279,175.55,175.51,22.697422]
[1747894975450,34.18,175.54,175.52,22.697422]
[1747894975761,60.18,175.54,175.52,14.39850173]
[1747894975962,39.87703184,175.53,175.52,14.39850173]
[1747894976158,5.69703184,175.53,175.52,14.39850173]
[1747894976355,34.18,175.53,175.52,14.39850173]
[1747894978661,39.87703184,175.53,175.52,14.39850173]
[1747894979170,34.18,175.53,175.52,14.39850173]
[1747894980869,26.0,175.58,175.52,14.39850173]
[1747894981074,26.0,175.58,175.47,57.89181043]
[1747894981075,26.0,175.58,175.57,14.39850173]
[1747894981259,65.87540949,175.58,175.56,14.39850173]
[1747894981568,65.87540949,175.58,175.56,14.33469948]
[1747894981801,31.69540949,175.58,175.56,14.33469948]
[1747894981960,34.18,175.57,175.56,14.33469948]
[1747894983068,5.69540949,175.58,175.56,14.33469948]
[1747894983278,39.87540949,175.58,175.5,1.6414]
[1747894983477,40.39850173,175.55,175.5,14.39850173]
[1747894983768,34.18,175.54,175.5,14.39850173]
[1747894984368,5.69703184,175.53,175.43,65.09101929]
[1747894984566,5.69703184,175.53,175.48,14.39850173]
[1747894984764,14.39850173,175.52,175.43,1.6414]
[1747894984971,19.93961145,175.53,175.49,14.39850173]
[1747894985157,19.93961145,175.53,175.48,14.39850173]
[1747894985366,34.33811318,175.53,175.43,1.6414]
[1747894985979,34.33811318,175.53,175.47,14.39850173]
[1747894986348,34.33811318,175.53,175.48,14.39850173]
[1747894986550,19.93961145,175.53,175.48,14.39850173]
[1747894987673,19.93961145,175.53,175.49,14.39850173]
[1747894990169,19.93961145,175.53,175.48,14.39850173]
[1747894991284,19.93961145,175.53,175.49,14.39850173]
[1747894992868,19.93961145,175.53,175.5,14.39850173]
[1747894995987,26.0,175.52,175.45,14.39850173]
[1747894996185,5.6967073,175.54,175.51,14.39850173]
[1747894996485,5.6967073,175.54,175.52,14.39850173]
[1747894996817,34.18,175.53,175.51,14.39850173]
[1747894997888,5.69735642,175.52,175.51,14.39850173]
[1747895004318,39.87735642,175.52,175.51,14.39850173]
[1747895005979,5.69605832,175.56,175.51,14.39850173]
[1747895006297,34.18,175.54,175.51,39.1]
[1747895006670,5.69605832,175.56,175.51,39.1]
[1747895006873,5.69540949,175.58,175.51,18.64964886]
[1747895007095,39.87540949,175.58,175.51,18.64964886]
[1747895007382,39.87540949,175.58,175.57,14.39850173]
[1747895007576,44.59972417,175.59,175.57,14.39850173]
[1747895007795,44.59972417,175.59,175.58,14.39850173]
[1747895007996,10.41972417,175.59,175.58,14.39850173]
[1747895010798,34.18,175.64,175.58,14.39850173]
[1747895010989,39.8734639,175.64,175.63,14.39850173]
[1747895011593,5.6934639,175.64,175.63,14.39850173]
[1747895012200,34.18,175.65,175.63,14.39850173]
[1747895012201,39.87320623,175.65,175.63,14.39850173]
[1747895012389,39.87320623,175.65,175.64,14.39850173]
[1747895014593,34.16,175.66,175.64,14.39850173]
[1747895014903,19.9237206,175.67,175.65,14.39850173]
[1747895015105,34.16,175.66,175.65,14.39850173]
[1747895016425,39.8524916,175.67,175.65,14.39850173]
[1747895016715,39.8524916,175.67,175.66,14.39850173]
[1747895017013,5.69151963,175.7,175.66,14.39850173]
[1747895017321,34.16,175.69,175.63,18.64964886]
[1747895017613,5.69151963,175.7,175.63,18.64964886]
[1747895017811,39.85151963,175.7,175.63,18.64964886]
[1747895017987,39.85151963,175.7,175.63,20.26364886]
[1747895018404,39.85151963,175.7,175.69,14.39850173]
[1747895018911,5.69151963,175.7,175.63,25.95740383]
[1747895019127,5.69151963,175.7,175.69,14.39850173]
[1747895019940,16.51355394,175.71,175.69,14.39850173]
[1747895020114,16.51355394,175.71,175.7,14.39850173]
[1747895021832,16.51355394,175.71,175.63,25.95735665]
[1747895021833,16.51355394,175.71,175.63,20.26364886]
[1747895022131,16.51355394,175.71,175.7,14.39850173]
[1747895028719,26.0,175.7,175.67,14.39850173]
[1747895028944,45.14004497,175.71,175.66,14.39850173]
[1747895029146,14.39850173,175.69,175.64,14.39850173]
[1747895029329,0.14216157,175.68,175.63,14.39850173]
[1747895029522,40.39,175.67,175.62,14.39850173]
[1747895029723,54.78850173,175.67,175.62,14.39850173]
[1747895029923,40.39,175.67,175.63,14.39850173]
[1747895030625,5.69281566,175.66,175.63,14.39850173]
[1747895030826,5.69281566,175.66,175.64,14.39850173]
[1747895031025,19.92485482,175.66,175.64,14.39850173]
[1747895031950,19.92485482,175.66,175.65,14.39850173]
[1747895032159,5.69281566,175.66,175.65,14.39850173]
[1747895034170,5.6924916,175.67,175.65,14.39850173]
[1747895034345,5.6924916,175.67,175.66,14.39850173]
[1747895034730,39.85222231,175.68,175.66,14.39850173]
[1747895034935,39.85222231,175.68,175.67,14.39850173]
[1747895035959,5.69177162,175.7,175.69,26.0]
[1747895036668,5.69177162,175.7,175.69,14.39850173]
[1747895037261,39.8512673,175.71,175.69,14.39850173]
[1747895037757,39.8512673,175.71,175.7,14.39850173]
[1747895038563,5.68990042,175.75,175.7,14.39850173]
[1747895038752,34.14,175.74,175.73,14.39850173]
[1747895039848,39.83022419,175.74,175.73,14.39850173]
[1747895040365,5.69022419,175.74,175.73,14.39850173]
[1747895040573,39.83022419,175.74,175.7,26.0]
[1747895040750,39.83022419,175.74,175.73,14.39850173]
[1747895041552,5.68993747,175.75,175.73,14.39850173]
[1747895041757,34.14,175.74,175.7,26.0]
[1747895042063,5.69022419,175.74,175.73,14.39850173]
[1747895042454,5.68892934,175.78,175.73,47.66822259]
[1747895042777,34.14,175.77,175.73,26.0]
[1747895042973,5.68892934,175.78,175.76,14.39850173]
[1747895043275,5.68892934,175.78,175.77,14.39850173]
[1747895043577,39.82892934,175.78,175.77,14.39850173]
[1747895045046,8.63657507,175.79,175.77,14.39850173]
[1747895045247,14.32518079,175.79,175.78,14.39850173]
[1747895045690,14.32518079,175.79,175.77,26.0]
[1747895045854,14.32518079,175.79,175.78,14.39850173]
[1747895048159,8.63657507,175.79,175.78,14.39850173]
[1747895048481,8.63657507,175.79,175.78,28.79700346]
[1747895048664,34.14,175.81,175.8,26.0]
[1747895048861,34.14,175.81,175.8,40.39850173]
[1747895049377,39.82804173,175.81,175.8,14.39850173]
[1747895051283,5.68698817,175.84,175.8,14.39850173]
[1747895051463,34.14,175.83,175.78,40.39850173]
[1747895051769,34.14,175.83,175.82,40.39850173]
[1747895052761,39.8273116,175.83,175.82,40.39850173]
[1747895052969,5.6873116,175.83,175.82,40.39850173]
[1747895053200,39.8273116,175.83,175.82,40.39850173]
[1747895057050,5.68704885,175.84,175.82,40.39850173]
[1747895057213,34.12,175.84,175.83,14.39850173]
[1747895058515,39.80701531,175.84,175.82,26.0]
[1747895058823,39.80701531,175.84,175.83,14.39850173]
[1747895059354,34.12,175.84,175.83,14.39850173]
[1747895059521,5.6864236,175.86,175.85,26.0]
[1747895059848,39.8064236,175.86,175.85,40.39850173]
[1747895060427,39.8064236,175.86,175.85,14.39850173]
[1747895061719,39.8064236,175.86,175.83,26.0]
[1747895062047,39.8064236,175.86,175.85,14.39850173]
[1747895065844,19.89816848,175.9,175.85,14.39850173]
[1747895066148,34.12,175.89,175.85,14.39850173]
[1747895066330,34.12,175.89,175.83,26.0]
[1747895066532,34.12,175.89,175.86,14.39850173]
[1747895067753,19.89993176,175.88,175.83,26.0]
[1747895067929,19.89993176,175.88,175.86,14.39850173]
[1747895071553,19.89993176,175.88,175.87,14.39850173]
[1747895072658,5.68569479,175.88,175.87,14.39850173]
[1747895072955,14.21194466,175.91,175.9,26.0]
[1747895072956,5.68472514,175.91,175.9,26.0]
[1747895073146,34.12,175.91,175.9,14.39850173]
[1747895073331,5.68310979,175.96,175.9,14.39850173]
[1747895073532,5.68310979,175.96,175.95,14.39850173]
[1747895073731,39.80310979,175.96,175.95,14.39850173]
[1747895074331,39.80310979,175.96,175.88,31.6856121]
[1747895074541,39.80310979,175.96,175.87,1.5296]
[1747895074542,39.80310979,175.96,175.92,26.0]
[1747895074848,54.01088428,175.96,175.95,14.39850173]
[1747895075755,54.01088428,175.96,175.94,14.39850173]
[1747895077659,54.01088428,175.96,175.87,27.5296]
[1747895077842,54.01088428,175.96,175.92,14.39850173]
[1747895078038,54.01088428,175.96,175.87,27.5296]
[1747895078339,54.01088428,175.96,175.91,14.39850173]
[1747895079658,54.01088428,175.96,175.92,14.39850173]
[1747895081058,54.01088428,175.96,175.9,26.0]
[1747895081059,54.01088428,175.96,175.93,14.39850173]
[1747895081969,54.01088428,175.96,175.92,14.39850173]
[1747895082268,34.1,175.95,175.93,14.39850173]
[1747895082842,34.1,175.95,175.89,26.0]
[1747895083055,34.1,175.95,175.93,14.39850173]
[1747895083270,34.1,175.95,175.92,14.39850173]
[1747895083670,34.1,175.95,175.93,14.39850173]
[1747895084079,5.68375582,175.94,175.93,14.39850173]
[1747895084284,5.68375582,175.94,175.92,14.39850173]
[1747895087366,5.68375582,175.94,175.93,14.39850173]
[1747895087760,5.68375582,175.94,175.91,26.0]